Cogmind - Beta 14 @@@ ROGUE MODE // 2025.01.18 @ 19:47:33 Player: N.W.L Result: Destroyed by P-70 Sage with Tesla Rifle Performance ------------- Evolutions (6) 3000 Regions Visited (26) 5200 Robots Destroyed (537) 2685 Value Destroyed (20782) 20782 Prototype IDs (38) 760 Alien Tech Used (0) 0 Bonus (7616) 7616 TOTAL SCORE: 40043 Bonus ------- High Alert Combat Kills 3406 Follower Combat Kills 3233 Entered Garrisons 800 Network Hubs Disabled 200 Met Data Miner 300 Acquired ECA 300 Built Enhanced Grunts 300 A7 Reached Mainframe 300 Met R17 at Cetus 500 Friendly Fire -1723 Cogmind --------- Core Integrity 0/1150 Matter 220/300 Energy 99/100 System Corruption 57% Temperature Cool (0) Movement Core (50) Location -4/Factory Parts ------- > --- POWER (2) -------- (None) > --- PROPULSION (5) --- (None) > --- UTILITY (9) ------ Advanced Melee Analysis Suite > --- WEAPON (3) ------- (None) > --- INVENTORY (5) ---- Encrypted Comm Array Quantum Capacitor HERF Cannon Improved Plasma Cutter Peak State ------------ > --- POWER ------------ Quantum Reactor Quantum Reactor > --- PROPULSION ------- Advanced Medium Treads Centrium Heavy Treads Centrium Heavy Treads > --- UTILITY ---------- Improved Coolant Injector Huge Storage Unit Enhanced Optical Array Core Analyzer Centrium Medium Armor Plating Remote Force Field Improved Hacking Suite Advanced Hacking Suite Advanced System Shield > --- WEAPON ----------- Cooled Plasma Rifle Advanced Plasma Cannon Advanced Plasma Cannon > --- INVENTORY -------- Neutrino Core Heavy Treads Centrium Heavy Treads Centrium Heavy Treads Improved Cooling System Coolant Injector YI-UF0's Bottomless Matter Pit Advanced Sensor Array Advanced Terrain Scanner Advanced Terrain Scan Processor Encrypted Comm Array Advanced Shield Generator Improved Hacking Suite Long-range Proton Cannon Enhanced Gauss Cannon Enhanced Gauss Cannon Heavy Shock Bomb Launcher Remote Datajack Improved Plasma Cutter Chainsword [Rating: 141] Favorites ----------- Power Cooled Ion Engine Engine Cooled Ion Engine Power Core Neutrino Core Reactor Quantum Reactor Propulsion Light Treads Treads Light Treads Wheel Wheel Hover Unit Gyrokinetic Inverter Utility Huge Storage Unit Device Improved Cooling System Storage Huge Storage Unit Processor Enhanced Optical Array Hackware Hacking Suite Protection Light Armor Plating Weapon Autogun Energy Gun Plasma Rifle Energy Cannon Plasma Cannon Ballistic Gun Autogun Ballistic Cannon Heavy Mass Driver Launcher Heavy Shock Bomb Launcher Special Weapon Mining Laser Slashing Weapon Axe Piercing Weapon Force Lance Special Melee Weapon Improved Datajack Build | -11 -10 -10 -9 -9 -9 -8 -8 -8 -8 -7 -7 -7 -7 -7 -7 -6 -6 -6 -6 -6 -5 -5 -5 -5 -5 -4 ------- Run | Yrd Mat Min Mat Min Exi Min Mat Gar Mat Fac Gar Fac Low Low Dat Pro Fac Gar Fac Gar Fac Ext Cet Arc Hub Fac Slots Evolved 12 | . . . 2 . . . 2 . . 2 . . . . . . 2 . . . 2 . . . . 2 Power 1 | . . . . . . . . . . . . . . . . . 1 . . . . . . . . . Propulsion 3 | . . . . . . . 1 . . 1 . . . . . . . . . . 1 . . . . . Utility 7 | . . . 1 . . . 1 . . 1 . . . . . . 1 . . . 1 . . . . 2 Weapon 1 | . . . 1 . . . . . . . . . . . . . . . . . . . . . . . Parts Attached 546 | 7 17 2 37 6 1 3 36 41 16 19 25 21 11 11 2 6 81 19 21 30 39 24 6 10 13 42 Power 49 | 1 3 . 3 . . . . 2 . 3 1 2 1 2 . . 10 1 . 1 8 1 1 1 . 8 Engine 29 | 1 3 . 2 . . . . 2 . 2 1 2 . 1 . . 9 1 . 1 3 . . . . 1 Core 13 | . . . 1 . . . . . . 1 . . 1 1 . . 1 . . . 5 1 . . . 2 Reactor 7 | . . . . . . . . . . . . . . . . . . . . . . . 1 1 . 5 Propulsion 85 | 2 2 . 7 1 1 . 6 9 3 2 6 5 . . . 2 7 2 5 11 4 . 1 1 2 6 Treads 81 | 2 2 . 7 1 1 . 6 9 3 2 6 2 . . . 2 7 2 5 11 4 . 1 1 2 5 Leg . | . . . . . . . . . . . . . . . . . . . . . . . . . . . Wheel 3 | . . . . . . . . . . . . 3 . . . . . . . . . . . . . . Hover 1 | . . . . . . . . . . . . . . . . . . . . . . . . . . 1 Flight . | . . . . . . . . . . . . . . . . . . . . . . . . . . . Utility 186 | 2 3 1 5 4 . 1 9 9 8 4 3 10 7 3 . 2 31 7 10 10 21 10 2 6 2 16 Device 94 | 1 . . . . . 1 2 3 6 2 2 6 5 1 . 2 20 4 4 5 9 8 . 4 1 8 Storage 7 | 1 2 . . 1 . . 1 1 . . . . . . . . . . . . . 1 . . . . Processor 7 | . . . . . . . . . . . . . . . . . . . . 1 3 . . . . 3 Hackware 21 | . 1 . 2 . . . . . 1 1 . 2 . . . . 3 . 1 1 4 1 . 1 1 2 Protection 57 | . . 1 3 3 . . 6 5 1 1 1 2 2 2 . . 8 3 5 3 5 . 2 1 . 3 Artifact . | . . . . . . . . . . . . . . . . . . . . . . . . . . . Weapon 226 | 2 9 1 22 1 . 2 21 21 5 10 15 4 3 6 2 2 33 9 6 8 6 13 2 2 9 12 Energy Gun 59 | 1 1 . 2 . . . 7 . . . 2 1 1 3 . . 17 4 5 2 3 6 1 1 . 2 Energy Cannon 46 | . . . . . . . 1 . 3 8 8 . 1 1 . . 14 1 1 2 1 1 . 1 3 . Ballistic Gun 40 | 1 5 1 11 1 . 1 7 11 2 . . . . . . . . . . . . . . . . . Ballistic Cannon 13 | . . . 1 . . . . 2 . . . 1 . . 1 . . . . 2 2 2 . . . 2 Launcher 23 | . . . 2 . . 1 1 1 . 1 2 1 1 2 . 2 1 1 . . . . 1 . 2 4 Special Weapon 15 | . 3 . 4 . . . . 2 . . . . . . . . . . . 1 . 4 . . 1 . Impact Weapon . | . . . . . . . . . . . . . . . . . . . . . . . . . . . Slashing Weapon 21 | . . . 1 . . . 5 5 . 1 2 1 . . . . . 1 . 1 . . . . 3 1 Piercing Weapon 3 | . . . . . . . . . . . . . . . . . . . . . . . . . . 3 Special Melee Weapon 6 | . . . 1 . . . . . . . 1 . . . 1 . 1 2 . . . . . . . . Unidentified Prototypes 15 | . . . 3 1 . . 3 . . 3 . . . . . . 1 . 1 . 1 . 2 . . . Corrupted Parts 5 | . . . . . . . . . . . . . . . . . . . . . . . . 2 2 1 System Corruption 29 | . . . . . . . . . . . . . . . . . . . . . . . . 8 20 1 Parts Lost 127 | . 1 1 2 2 . . 1 20 3 . 6 5 . 6 . 1 13 4 1 15 8 . . . 1 37 Power 21 | . 1 . . . . . . 2 . . 1 2 . 2 . . 3 . . 2 1 . . . . 7 Propulsion 33 | . . . 1 . . . 1 6 2 . 1 2 . 1 . 1 2 2 . 4 2 . . . 1 7 Utility 44 | . . . 1 2 . . . 6 1 . 1 . . 2 . . 5 1 1 6 2 . . . . 16 Weapon 29 | . . 1 . . . . . 6 . . 3 1 . 1 . . 3 1 . 3 3 . . . . 7 Highest Loss Streak 10 | . 1 1 1 1 . . 1 10 1 . 3 3 . 4 . 1 2 2 1 7 6 . . . 1 10 To Critical Strikes 1 | . . . . . . . . . . . . . . . . . . . . . . . . . . 1 Average Slot Usage (%) 92 | . 99 100 99 100 100 100 92 89 98 99 84 84 98 91 76 80 95 99 99 83 90 93 88 87 87 70 Engine 7 | . 13 14 8 11 11 11 9 6 9 6 7 6 1 . 7 7 10 13 13 7 3 . . . . . Core 1 | . . . 2 . . . . . . . . . 5 6 . . . . . . 6 11 9 3 . 1 Treads 22 | . 28 28 22 22 22 22 27 26 27 30 15 14 15 15 15 22 25 25 25 22 22 23 17 17 16 10 Device 10 | . 4 . . . . 9 9 8 19 28 17 15 14 6 . 14 12 15 17 17 9 11 11 13 7 11 Storage 8 | . 14 14 11 11 11 11 9 9 9 7 7 7 7 7 7 7 6 6 6 6 5 5 5 5 5 4 Processor 1 | . . . . . . . . . . . . . . . . . . . . 2 12 12 11 11 11 7 Hackware 6 | . 9 8 10 7 . . . . 1 . 7 14 8 7 7 7 12 7 6 7 7 8 5 5 14 11 Protection 6 | . . 5 11 14 22 12 11 12 4 1 4 . 5 14 23 7 6 8 8 1 3 . 5 1 . 1 Energy Gun 4 | . 3 . . . . . 4 . . . 2 4 6 5 . . 11 18 16 9 5 8 10 10 7 2 Energy Cannon 4 | . . . . . . . . . 16 21 17 13 14 14 . . 4 . 3 . 1 2 5 5 7 1 Ballistic Gun 9 | . 22 28 28 33 33 32 20 19 5 . . . . . . . . . . . . . . . . . Ballistic Cannon 1 | . . . 1 . . . . 5 5 . . 1 . . . 7 1 . . 5 7 3 . . . . Peak Build Rating 141 | 7 14 14 19 26 18 18 33 53 56 58 76 71 58 59 57 55 77 77 77 78 106 107 118 130 127 141 Average Rating 53 | 5 11 12 17 18 18 18 27 33 48 54 69 63 53 56 46 50 67 75 74 67 93 102 112 119 126 104 On Entrance 55 | . 7 14 11 19 18 18 18 29 53 46 57 70 51 55 57 54 51 74 76 69 68 103 103 118 130 121 Naked Turns . | . . . . . . . . . . . . . . . . . . . . . . . . . . . Heaviest Build 169 | 12 33 36 42 43 43 43 76 132 132 129 126 128 125 145 137 137 148 149 169 160 138 141 144 154 152 163 Greatest Support 190 | 40 40 40 40 43 43 43 66 77 77 97 150 150 20 20 10 87 118 120 110 125 162 157 180 190 190 190 Greatest Overweight (x) 14 | . . . 1 1 . . 1 1 1 1 1 9 6 14 13 13 2 1 2 1 . . . . . . Average Overweight (x) 1 | . . . . . . . . 1 1 1 . 1 5 11 11 5 . 1 1 . . . . . . . Largest Inventory Capacity 25 | 8 15 15 15 15 15 15 20 25 25 25 25 25 25 25 25 25 25 25 25 25 25 25 25 25 25 25 Average Capacity 21 | 7 11 15 15 15 15 15 18 21 25 25 25 25 25 25 25 25 25 25 25 25 25 25 25 25 25 23 Most Carried 25 | 4 15 15 15 15 15 15 20 25 25 25 25 25 25 25 25 25 25 25 25 25 25 25 25 25 25 25 Average Carried 20 | 2 9 14 14 14 14 15 17 20 24 24 23 24 24 24 24 23 24 23 24 18 20 24 24 24 24 20 Final Capacity 25 | 8 15 15 15 15 15 15 20 25 25 25 25 25 25 25 25 25 25 25 25 25 25 25 25 25 25 5 Final Carried 25 | 4 15 13 15 15 15 15 20 24 25 25 22 24 25 24 23 23 25 25 25 14 25 25 25 25 24 5 Class Distribution -------------------- 25% | Scavenger-Tank 22% | Tank 12% | Mutant 10% | Scavenger-Gunner 7% | Scavenger-Mutant 5% | Hacker-Gunner 4% | Commander-Gunner 4% | Hacker-Tank Dominant Class ---------------- Mutant | -10/Materials Mutant | -10/Mines Tank | -9/Materials Tank | -9/Mines Tank | -9/Exiles Tank | -8/Mines Tank | -8/Materials Scavenger-Tank | -8/Garrison Scavenger-Gunner | -8/Materials Scavenger-Gunner | -7/Factory Scavenger-Tank | -7/Garrison Scavenger-Gunner | -7/Factory Scavenger-Tank | -7/Lower Caves Scavenger-Tank | -7/Lower Caves Scavenger-Mutant | -7/Data Miner Scavenger-Mutant | -6/Proximity Caves Scavenger-Tank | -6/Factory Scavenger-Tank | -6/Garrison Scavenger-Tank | -6/Factory Scavenger-Skirmisher | -6/Garrison Tank | -5/Factory Commander-Gunner | -5/Extension Commander-Gunner | -5/Cetus Commander-Gunner | -5/Archives Hacker-Gunner | -5/Hub_04(d) Hacker-Assassin | -4/Factory Resources | -11 -10 -10 -9 -9 -9 -8 -8 -8 -8 -7 -7 -7 -7 -7 -7 -6 -6 -6 -6 -6 -5 -5 -5 -5 -5 -4 ----------- Run | Yrd Mat Min Mat Min Exi Min Mat Gar Mat Fac Gar Fac Low Low Dat Pro Fac Gar Fac Gar Fac Ext Cet Arc Hub Fac Matter Collected 15924 | 316 794 94 1486 934 150 761 1379 1534 1283 180 369 192 705 155 . 236 1001 248 168 628 1165 1023 92 123 40 868 Remotely . | . . . . . . . . . . . . . . . . . . . . . . . . . . . Salvage Created 21956 | 149 1091 87 1760 648 . 564 1610 1090 1678 661 1863 644 120 352 . 113 3095 943 641 257 1117 838 120 300 426 1789 Parts 1077 | 11 87 3 127 24 . 47 82 69 98 37 76 45 3 23 . 8 102 31 21 13 31 29 8 22 10 70 Haulers Intercepted 28 | . 2 . 6 . . . 5 . 6 1 . 2 . . . . 3 . 1 . 1 . . . . 1 Recyclers Shooed 22 | . 3 . 2 . . . 4 . 1 . . 1 . . . . 4 . 2 . 2 1 . . . 2 Parts Field Recycled . | . . . . . . . . . . . . . . . . . . . . . . . . . . . Retrieved Matter . | . . . . . . . . . . . . . . . . . . . . . . . . . . . Parts Self-Destructed 28 | . . . . . . . . . . . . . 2 18 . 8 . . . . . . . . . . Prevented . | . . . . . . . . . . . . . . . . . . . . . . . . . . . Kills | -11 -10 -10 -9 -9 -9 -8 -8 -8 -8 -7 -7 -7 -7 -7 -7 -6 -6 -6 -6 -6 -5 -5 -5 -5 -5 -4 ------- Run | Yrd Mat Min Mat Min Exi Min Mat Gar Mat Fac Gar Fac Low Low Dat Pro Fac Gar Fac Gar Fac Ext Cet Arc Hub Fac Combat Hostiles Destroyed 371 | . 21 1 34 8 . 10 23 34 23 11 37 13 7 10 . 6 36 21 3 10 18 14 1 . 5 25 Melee 8 | . . . . . . . 1 . . . . . . . . . . . . 2 . . . . . 5 Guns 161 | . 21 1 30 8 . 7 18 26 2 . 2 1 . 1 . . 17 15 1 . 5 6 . . . . Cannons 108 | . . . . . . . . 6 21 10 19 4 . 3 . 1 6 . 1 6 13 7 . . 2 9 AOE 71 | . . . 4 . . 3 4 2 . . 15 8 7 6 . 5 5 5 . . . . . . 2 5 Classes Destroyed 23 | 3 6 1 2 1 . . 1 2 1 1 1 . . . . 1 . . . 2 . . . . 1 . Worker 34 | 1 3 . 1 . . 4 4 . 3 . . 4 . . . . 9 . 2 . 1 . . . 1 1 Builder 18 | . 1 . . . . 1 . . 4 1 . 1 . . . . 3 . 3 . 1 1 . . . 2 Tunneler 11 | 3 1 . 2 1 . 2 . . 1 . . . . . . . . . . . . . . . . 1 Hauler 28 | . 2 . 6 . . . 5 . 6 1 . 2 . . . . 3 . 1 . 1 . . . . 1 Recycler 33 | 1 3 1 2 2 . 5 3 . 4 1 . . . . . . 6 . 3 . 2 . . . . . Mechanic 2 | . . . 1 . . . . . . . . . . . . . 1 . . . . . . . . . Operator 19 | . 4 . 1 . . . . . . 1 . 1 . . . . 1 . . . . 1 . 9 . 1 Drone 1 | . . . . . . . . . . . . . . . . 1 . . . . . . . . . . Watcher 21 | . 3 . 4 . . . 2 . 4 1 . . . . . . 3 . . . . 1 1 . 1 1 Swarmer 110 | . 12 . 13 . . 10 3 14 2 4 22 3 1 4 . 4 7 6 . . 4 . . . . 1 Cutter 3 | . . . . . . . . . . . . . . . . . . . . 3 . . . . . . Saboteur 1 | . . . . . . . . . . . . . . . . . . . . 1 . . . . . . Grunt 138 | . 9 . 13 6 . . 11 13 11 3 7 4 5 3 . . 9 13 . 3 3 11 . . 2 12 Brawler 8 | . . . . . . . 1 1 1 . . 1 . . . . 1 . . . 1 . . . . 2 Duelist 10 | . . . . 2 . . . . 2 . . 1 . . . . . . 1 1 1 . . . 2 . Protector 3 | . . . . . . . . 1 . . . . . . . . . . . . 1 . . . . 1 Sentry 50 | . . . 8 . . . 8 3 6 1 3 3 1 1 . 1 6 1 . . 4 3 . . . 1 Demolisher 2 | . . 1 . . . . . 1 . . . . . . . . . . . . . . . . . . Specialist 4 | . . . . . . . . . . . 2 . . . . . 2 . . . . . . . . . Hunter 13 | . . . . . . . . . 1 . . . . 1 . . 6 1 . . . . . . . 4 Programmer 23 | . . . . . . . . . . 3 4 1 . . . . 4 . 2 1 4 . . . . 4 Heavy 1 | . . . . . . . . . . . . . . . . . . . . . . . . . 1 . Behemoth 5 | . . . . . . . . 1 . . . . . 1 . 1 1 . . 1 . . . . . . Cetus Guard 1 | . . . . . . . . . . . . . . . . . . . . . . . 1 . . . Best Kill Streak 12 | 3 6 1 6 3 . 6 5 4 5 4 12 12 7 5 . 4 8 7 3 3 12 5 2 3 5 10 Combat Bots Only 12 | . 6 1 6 3 . 4 5 4 4 4 12 8 7 5 . 4 5 7 1 3 10 5 1 . 4 9 Max Kills in Single Turn 7 | 1 1 1 5 2 . 2 3 1 2 2 7 4 2 3 . 4 3 2 3 1 2 2 1 1 2 3 Gunslinging 2 | . . . 1 1 . 1 2 . . . . . . . . . 1 1 . . 1 . . . . . Exploded 7 | . . . 4 . . 2 2 1 . . 7 2 2 3 . 4 3 1 . . . . . . 2 3 Melee 1 | . . . . . . . 1 . . . . . . . . . . . . 1 . . . . . 1 Uniques/NPCs Destroyed 1 | . . . . 1 . . . . . . . . . . . . . . . . . . . . . . YI-UF0 (-9/Mines) Combat | -11 -10 -10 -9 -9 -9 -8 -8 -8 -8 -7 -7 -7 -7 -7 -7 -6 -6 -6 -6 -6 -5 -5 -5 -5 -5 -4 -------- Run | Yrd Mat Min Mat Min Exi Min Mat Gar Mat Fac Gar Fac Low Low Dat Pro Fac Gar Fac Gar Fac Ext Cet Arc Hub Fac Hostile Shots Fired 2411 | . 99 5 88 24 . 20 79 212 80 51 181 80 21 70 . 34 415 112 26 107 148 42 18 . 50 449 Missed 706 | . 28 1 25 3 . 5 13 42 24 18 53 27 9 22 . 10 149 38 3 16 38 14 8 . 18 142 Damage Taken 29689 | . 624 229 720 283 . 142 1127 3090 830 422 1694 1067 250 835 . 463 3504 1099 614 2112 1926 430 211 . 799 7218 Core 3121 | . 136 14 72 61 . 8 133 262 98 40 57 194 14 31 . 15 266 36 40 230 114 44 15 . 75 1166 Absorbed by Shields 1179 | . . . . . . . . . . . . . . . . . . . . . 129 254 52 . 221 523 Reduced by Siege Mode 528 | . . . . . . . . . . . 99 70 . . . . . . . 76 230 16 . . . 37 Redirected to Shielding 105 | . . . . . . . . . . . . . . . . . . . . . . . . . . 105 Ignored by Resistances 1092 | . . . . . . . . 185 . 23 209 . . . . . 152 239 9 275 . . . . . . Regen/Repaired (Parts) 869 | . 30 . 277 . . . . . . . . 118 . . . . 444 . . . . . . . . . Core Remaining (%) 52 | 100 . 40 . . . 64 . . 10 . . . . . . 49 . . . 32 . . . . 75 . Volleys Fired 1393 | 17 108 7 108 25 . 27 102 94 99 39 101 54 14 17 . 6 188 61 24 36 62 76 11 34 26 57 Largest 3 | 2 2 2 3 3 . 3 3 3 3 3 3 3 2 3 . 1 3 3 3 3 3 3 3 3 3 3 Hottest 258 | 60 100 46 100 69 . 69 109 133 240 258 258 258 143 258 . 75 255 225 240 240 237 203 203 203 251 242 Shots Fired 3024 | 34 200 14 306 75 . 73 252 237 263 86 187 75 16 31 . 9 367 136 65 63 116 156 25 74 43 121 Gun 1834 | 34 190 14 291 75 . 69 224 216 72 . 11 4 1 13 . . 204 128 55 31 36 56 16 67 14 13 Cannon 1067 | . . . 6 . . . 24 18 191 86 168 68 9 15 . 4 159 2 10 32 80 64 7 7 26 91 Launcher 70 | . . . 2 . . 4 4 3 . . 8 3 6 3 . 5 4 6 . . . . 2 . 3 17 Special 53 | . 10 . 7 . . . . . . . . . . . . . . . . . . 36 . . . . Kinetic 1405 | 17 144 14 297 75 . 69 191 234 155 . . 1 . . . 4 7 . . 27 69 47 . . . 54 Thermal 1500 | 17 56 . 7 . . . 57 . 108 86 179 71 10 28 . . 354 130 65 36 36 73 23 74 40 50 Explosive 48 | . . . 2 . . 4 4 3 . . 8 3 6 3 . 5 4 6 . . . . . . . . Electromagnetic 35 | . . . . . . . . . . . . . . . . . 2 . . . 11 . 2 . 3 17 Robot Hit Streak 46 | 10 11 6 12 10 . 6 17 12 13 12 23 16 11 12 . 11 14 10 11 13 46 18 8 5 4 13 Robot Miss Streak 7 | 4 4 3 4 3 . 3 5 5 7 3 5 2 1 3 . 2 5 3 4 3 2 3 2 3 3 3 Penetration Max 1 | . . . . . . . . . 1 . . . . . . . 1 . . . . 1 . . . . Secondary Targets 25 | . 1 . 6 2 . 3 3 2 . . . . . . . . 1 6 . . 1 . . . . . Max Gunslinging Chain 2 | . 1 . 1 1 . 1 2 1 . . . . . . . . 1 2 . . 1 . . . . . Shots Hit Robots 1730 | 21 107 9 169 42 . 38 141 146 137 41 119 26 3 20 1 4 210 80 44 35 79 106 4 37 16 95 Core Hits 965 | 7 53 3 68 20 . 27 64 65 55 19 72 36 25 25 . 21 136 62 18 15 42 34 11 23 10 54 Critical Kills 4 | . . . . . . . . . 1 . . . . . . . 1 . . . . . . 1 . 1 Critical Parts Destroyed 5 | 1 . . . . . . 4 . . . . . . . . . . . . . . . . . . . Critical Strikes 76 | 1 . . . . . . 5 1 11 . 1 1 . . . 1 18 7 5 3 4 5 . 2 . 11 Burn 32 | . . . . . . . . . . . . . . . . . 16 5 5 1 2 2 . 1 . . Meltdown 4 | . . . . . . . . . 1 . . . . . . . 1 . . . . . . 1 . 1 Destroy 6 | 1 . . . . . . 5 . . . . . . . . . . . . . . . . . . . Blast 27 | . . . . . . . . 1 10 . . 1 . . . 1 1 . . 2 2 3 . . . 6 Sever 5 | . . . . . . . . . . . 1 . . . . . . 2 . . . . . . . 2 Impale 2 | . . . . . . . . . . . . . . . . . . . . . . . . . . 2 Melee Attacks 217 | . . . 4 . . . 17 9 . 6 56 . . . 1 . 2 12 . 14 . . . . 8 88 Impact . | . . . . . . . . . . . . . . . . . . . . . . . . . . . Slashing 153 | . . . 4 . . . 17 9 . 6 41 . . . . . . 10 . 14 . . . . 8 44 Piercing 44 | . . . . . . . . . . . . . . . . . . . . . . . . . . 44 Sneak Attacks 21 | . . . . . . . . . . . 15 . . . 1 . 2 2 . . . . . . 1 . Combat Hostiles . | . . . . . . . . . . . . . . . . . . . . . . . . . . . Follow-up Attacks 8 | . . . . . . . . . . . . . . . . . . . . . . . . . . 8 Damage Inflicted 51353 | 260 1468 141 3020 713 . 872 2799 2743 3683 1185 5267 1695 665 945 . 666 6526 3623 1283 1323 3216 2310 514 1040 857 4539 Guns 20789 | 259 1454 125 2618 713 . 597 2295 2081 708 . 156 88 . 322 . . 3626 1495 1016 224 660 1003 74 887 167 221 Cannons 17154 | . . . 92 . . . 22 292 2966 1185 1908 681 34 206 . 69 2002 . 214 959 2516 1307 167 135 244 2155 Explosions 9564 | . . . 219 . . 219 407 370 . . 1438 924 631 417 . 597 882 1434 . . 26 . 273 . 365 1362 Melee 3563 | . . . 42 . . . 59 . . . 1759 . . . . . . 694 . 140 . . . . 81 788 Ramming 283 | 1 14 16 49 . . 56 16 . 9 . 6 2 . . . . 16 . 53 . 14 . . 18 . 13 Kinetic 17976 | 139 1200 125 2710 713 . 597 1925 2373 2246 . . 90 . . . 69 378 . . 794 2248 1039 . . . 1330 Thermal 19852 | 120 254 . . . . . 392 . 1428 1185 2064 679 34 528 . . 5250 1495 1230 389 686 1271 241 1022 411 1173 Explosive 7538 | . . . 219 . . 219 407 370 . . 1438 924 631 417 . 597 882 1434 . . . . . . . . Electromagnetic 2141 | . . . . . . . . . . . . . . . . . . . . . 268 . 273 . 365 1235 Impact . | . . . . . . . . . . . . . . . . . . . . . . . . . . . Slashing 2981 | . . . 42 . . . 59 . . . 1759 . . . . . . 694 . 140 . . . . 81 206 Piercing 582 | . . . . . . . . . . . . . . . . . . . . . . . . . . 582 Highest Corruption 56 | . 2 2 . . . . . . 3 1 4 4 4 4 4 4 1 1 2 2 6 6 6 6 22 56 Average Corruption 4 | . 2 2 . . . . . . 2 1 2 4 4 4 4 4 1 1 1 1 3 6 6 4 5 21 Corruption Purged 16 | . . . . . . . . . . . . . . . . . . . 1 1 . . . 14 . . Corruption Blocked . | . . . . . . . . . . . . . . . . . . . . . . . . . . . Effects 369 | . 2 10 . . . . . . 41 7 28 28 17 21 4 32 12 8 5 11 13 42 10 10 2 66 Message Errors 83 | . . 2 . . . . . . 8 3 2 9 6 8 1 10 3 3 1 1 4 6 5 1 . 10 Matter Fused 89 | . . 4 . . . . . . 10 . 11 7 4 4 2 7 3 1 . 3 5 9 1 3 . 15 Heat Flow Errors 41 | . 1 2 . . . . . . 7 . 3 . 5 2 1 7 2 . 1 2 2 . 1 . . 5 Energy Discharges 40 | . . 2 . . . . . . 4 . 6 3 . 2 . 2 1 1 1 3 . 5 1 1 . 8 Parts Rejected 5 | . . . . . . . . . 1 . 1 1 . . . . . . 1 . . 1 . . . . Parts Fused 4 | . . . . . . . . . 1 . . 1 . 1 . . . . . . . . . . . 1 Data Loss (minor) 38 | . 1 . . . . . . . 5 1 1 3 . 2 . 2 1 1 1 1 1 8 1 . . 9 Data Loss (major) 21 | . . . . . . . . . 3 1 . 3 1 1 . . 1 1 . . . 5 . 2 . 3 Misfires 17 | . . . . . . . . . . 1 1 . 1 1 . 3 1 . . . . 7 . . 1 1 Alerts 13 | . . . . . . . . . 1 1 1 . . . . 1 . . . . 1 1 1 2 . 4 Misdirections 11 | . . . . . . . . . . . . . . . . . . . . . . . . . 1 10 Weapon Failures 7 | . . . . . . . . . 1 . 2 1 . . . . . 1 . 1 . . . 1 . . Overload Shots 3 | . . . . . . . . . . . . . . . . . . . . . . . 2 . 1 . Overflow Damage 668 | . . . 12 . . 13 . 42 152 3 98 33 5 . . . 95 28 36 13 68 13 . . 22 35 Projectiles 432 | . . . . . . . . 19 152 3 54 . . . . . 85 . 29 3 68 13 . . . 6 Explosions 152 | . . . 9 . . 13 . 23 . . 28 33 5 . . . 10 . . . . . . . 22 9 Melee 84 | . . . 3 . . . . . . . 16 . . . . . . 28 7 10 . . . . . 20 Knockbacks 66 | . . 1 2 . . . . . 17 . . . . . . . 1 . 1 10 6 15 . . . 13 Impact 2 | . . 1 . . . . . . . . . . . . . . . . 1 . . . . . . . Kinetic 55 | . . . 2 . . . . . 14 . . . . . . . 1 . . 7 6 14 . . . 11 Secondary 9 | . . . . . . . . . 3 . . . . . . . . . . 3 . 1 . . . 2 Self-Inflicted Damage 880 | . . . . . . 33 75 76 . . 128 130 65 107 . 65 126 8 . . . . . . 22 45 Shots 41 | . . . . . . 1 3 3 . . 5 5 3 6 . 3 6 1 . . . . . . 2 3 Rammed 39 | 1 2 1 10 1 . 7 4 . 1 . 1 1 . . . . 3 . 4 . 1 . . . . 2 Targets Rammed 43 | 1 2 1 10 1 . 8 4 . 2 . 1 1 . . . . 3 . 5 . 1 . . 1 . 2 Kicked . | . . . . . . . . . . . . . . . . . . . . . . . . . . . Crushed 4 | . . . . . . 1 . . 1 . . . . . . . . . 1 . . . . 1 . . Highest Temperature 564 | . 187 259 223 82 . 106 336 436 289 321 178 422 272 283 186 244 350 240 390 564 192 331 231 12 282 223 Average Temperature 80 | . 30 85 45 26 . 35 74 96 48 77 35 117 67 111 96 77 101 59 104 199 64 99 123 5 95 110 Received Heat Transfer 6525 | . 120 . 252 141 . . 594 1385 369 114 279 270 72 120 . 42 567 393 . 354 174 454 . . 46 779 Effects 25 | . . . . . . . 1 4 . . . 1 . . . . 1 . 3 13 . . . . 1 1 Shutdowns 6 | . . . . . . . . 1 . . . . . . . . . . 3 2 . . . . . . Energy Bleed 5 | . . . . . . . . . . . . . . . . . 1 . . 3 . . . . . 1 Interference 8 | . . . . . . . . 2 . . . . . . . . . . . 5 . . . . 1 . Matter Decay 1 | . . . . . . . . . . . . . . . . . . . . 1 . . . . . . Short Circuit 2 | . . . . . . . 1 1 . . . . . . . . . . . . . . . . . . Damage (minor) 1 | . . . . . . . . . . . . 1 . . . . . . . . . . . . . . Damage (major) 1 | . . . . . . . . . . . . . . . . . . . . 1 . . . . . . Damage (core) 1 | . . . . . . . . . . . . . . . . . . . . 1 . . . . . . Siege Activations 9 | . . . . . . . . . . . 3 1 . . . . . . . 2 1 1 . . . 1 Total Turns 241 | . . . . . . . . . . . 56 16 . . . . . . . 37 85 24 . . . 23 Longest Duration 85 | . . . . . . . . . . . 24 16 . . . . . . . 25 85 24 . . . 23 Robots Corrupted 9 | . . . . . . . . . 1 . . . . . . . . . 1 . 1 . 1 . 1 4 Combat Hostiles 6 | . . . . . . . . . . . . . . . . . . . . . . . 1 . 1 4 Parts Fried 19 | . . . . . . . . . 1 . . . . . . . . . 1 . 4 . 1 . 4 8 Impact Corruptions 3 | . . . 1 . . . . . 1 . . . . . . . . . 1 . . . . . . . Robots Melted 20 | . . . . . . . . . 1 1 1 . . . . . 9 1 2 1 . 1 . 1 . 2 Combat Hostiles 16 | . . . . . . . . . . 1 1 . . . . . 8 1 1 1 . 1 . . . 2 Parts Melted 115 | 1 . . . . . . . . 8 8 14 1 . 1 . . 38 8 8 6 7 3 . 5 4 3 Heat Transferred 40076 | 275 575 . . . . . 814 . 2750 2150 3950 1250 50 975 . . 11092 3900 3000 787 1444 2418 387 1923 611 1725 Parts Sabotaged 9 | . . . . . . . . . . . . . . . . . . . 3 6 . . . . . . Parts Stolen . | . . . . . . . . . . . . . . . . . . . . . . . . . . . Parts Stripped . | . . . . . . . . . . . . . . . . . . . . . . . . . . . Power Chain Reactions 5 | . . . . . . . . . . . . . . . . . . . . . 1 . . . . 4 Alert | -11 -10 -10 -9 -9 -9 -8 -8 -8 -8 -7 -7 -7 -7 -7 -7 -6 -6 -6 -6 -6 -5 -5 -5 -5 -5 -4 ------- Run | Yrd Mat Min Mat Min Exi Min Mat Gar Mat Fac Gar Fac Low Low Dat Pro Fac Gar Fac Gar Fac Ext Cet Arc Hub Fac Peak Influence 1662 | 25 360 120 365 200 . 175 336 1585 1056 440 1491 856 . . . . 565 1063 649 906 627 830 715 523 1662 1103 Initial 800 | . 16 115 . 35 . . 23 215 772 434 221 782 . . . . 12 193 557 441 475 210 417 286 112 800 Average 453 | 11 237 58 183 101 . 75 170 889 856 308 753 729 . . . . 205 771 535 690 502 250 574 433 1016 966 Maximum Alert Level 5 | . 1 . 1 1 . . 1 4 3 2 4 3 . . . . 2 3 2 3 2 3 3 2 5 4 Low Security (%) 31 | 100 24 100 52 99 . 100 58 . . 22 . . . . . . 55 4 . . . 64 . . 8 . Level 1 23 | . 75 . 47 . . . 41 12 . 52 32 . . . . . 30 13 8 . 13 10 . 36 11 . Level 2 18 | . . . . . . . . 22 15 24 23 32 . . . . 13 15 91 57 86 12 70 63 9 . Level 3 20 | . . . . . . . . 22 84 . 13 67 . . . . . 66 . 42 . 12 29 . 27 99 Level 4 4 | . . . . . . . . 42 . . 29 . . . . . . . . . . . . . 26 . Level 5 . | . . . . . . . . . . . . . . . . . . . . . . . . . 17 . High Security . | . . . . . . . . . . . . . . . . . . . . . . . . . . . Max Security . | . . . . . . . . . . . . . . . . . . . . . . . . . . . Squads Dispatched 76 | . 6 . 3 . . . 3 . 3 7 . 3 . . . . 16 . 5 . 3 1 . . 13 13 Investigation 15 | . 3 . 3 . . . 2 . 1 1 . . . . . . 2 . . . . . . . 2 1 Extermination 17 | . . . . . . . . . . 4 . 1 . . . . 5 . 2 . 2 . . . . 3 Reinforcement 23 | . 3 . . . . . . . 1 2 . 1 . . . . 5 . 1 . . . . . 6 4 Assault 14 | . . . . . . . . . . . . 1 . . . . 1 . 2 . 1 1 . . 3 5 Garrison 7 | . . . . . . . 1 . 1 . . . . . . . 3 . . . . . . . 2 . Intercept . | . . . . . . . . . . . . . . . . . . . . . . . . . . . Searches Triggered . | . . . . . . . . . . . . . . . . . . . . . . . . . . . Data Miner Redirects 9 | . . . . . . . . . . . . . . . . . 2 . 1 . . 1 . . . 5 Construction Impeded 7 | . . . . . . . . . . . . . . . . . 2 . 1 . . . . . 2 2 Haulers Reinforced 2 | . . . . . . . . . . . . . . . . . 1 . . . . . . . 1 . Active Scanning Responses . | . . . . . . . . . . . . . . . . . . . . . . . . . . . Cargo Convoy Interrupts . | . . . . . . . . . . . . . . . . . . . . . . . . . . . Stealth | -11 -10 -10 -9 -9 -9 -8 -8 -8 -8 -7 -7 -7 -7 -7 -7 -6 -6 -6 -6 -6 -5 -5 -5 -5 -5 -4 --------- Run | Yrd Mat Min Mat Min Exi Min Mat Gar Mat Fac Gar Fac Low Low Dat Pro Fac Gar Fac Gar Fac Ext Cet Arc Hub Fac Distress Signals 26 | . 5 . 2 1 . . 2 . 5 . . . . . . . 1 . . . 1 . 1 . 4 4 Communications Jammed . | . . . . . . . . . . . . . . . . . . . . . . . . . . . Distress Signals . | . . . . . . . . . . . . . . . . . . . . . . . . . . . Times Spotted 598 | . 40 2 43 11 . 10 38 38 38 15 38 13 12 10 . 2 49 27 13 15 25 32 10 22 38 57 Peak Tracking Total 11 | . 5 2 7 3 . 4 5 5 6 5 10 7 7 5 . 4 7 10 6 11 6 7 5 1 5 8 Tactical Retreats 40 | . 2 . 2 2 . . 1 2 3 . 3 1 . 1 . . 3 . 1 4 2 5 . . 3 5 Traps | -11 -10 -10 -9 -9 -9 -8 -8 -8 -8 -7 -7 -7 -7 -7 -7 -6 -6 -6 -6 -6 -5 -5 -5 -5 -5 -4 ------- Run | Yrd Mat Min Mat Min Exi Min Mat Gar Mat Fac Gar Fac Low Low Dat Pro Fac Gar Fac Gar Fac Ext Cet Arc Hub Fac Traps Triggered 19 | . 1 . 1 . . . . 4 2 1 2 . . . . . 2 . . 4 1 . . . . 1 Indirectly 1 | . . . . . . . . . . . . . . . . . . . . . . . . . . 1 Trap Hack Attempts . | . . . . . . . . . . . . . . . . . . . . . . . . . . . Triggered . | . . . . . . . . . . . . . . . . . . . . . . . . . . . Disarmed . | . . . . . . . . . . . . . . . . . . . . . . . . . . . Reprogrammed . | . . . . . . . . . . . . . . . . . . . . . . . . . . . Reused . | . . . . . . . . . . . . . . . . . . . . . . . . . . . Traps Extracted . | . . . . . . . . . . . . . . . . . . . . . . . . . . . Installed . | . . . . . . . . . . . . . . . . . . . . . . . . . . . Triggered . | . . . . . . . . . . . . . . . . . . . . . . . . . . . Machines | -11 -10 -10 -9 -9 -9 -8 -8 -8 -8 -7 -7 -7 -7 -7 -7 -6 -6 -6 -6 -6 -5 -5 -5 -5 -5 -4 ---------- Run | Yrd Mat Min Mat Min Exi Min Mat Gar Mat Fac Gar Fac Low Low Dat Pro Fac Gar Fac Gar Fac Ext Cet Arc Hub Fac Machines Disabled 63 | . 2 . 2 3 . 1 5 6 3 . 5 4 . . . . 4 5 3 4 3 2 1 2 6 2 Max in Single Turn 2 | . 1 . 1 2 . 1 1 1 1 . 1 1 . . . . 1 1 1 1 1 1 1 1 1 1 Garrison Access 4 | . . . . . . . . . . . . 1 . . . . 1 . . . 1 . . . 1 . Garrison Relay 14 | . . . . . . . . 4 . . 4 . . . . . . 3 . 3 . . . . . . Phase Generator 2 | . . . . . . . . 1 . . . . . . . . . . . 1 . . . . . . Network Hub 1 | . . . . . . . . . . . . . . . . . . . . . . . . . 1 . Machines Repaired . | . . . . . . . . . . . . . . . . . . . . . . . . . . . Machines Dismantled 3 | . . . . . . . . 1 . . . . . . . . . . . 1 . . . . 1 . Machines Sabotaged . | . . . . . . . . . . . . . . . . . . . . . . . . . . . Overloaded Fab Kills . | . . . . . . . . . . . . . . . . . . . . . . . . . . . Hacking | -11 -10 -10 -9 -9 -9 -8 -8 -8 -8 -7 -7 -7 -7 -7 -7 -6 -6 -6 -6 -6 -5 -5 -5 -5 -5 -4 --------- Run | Yrd Mat Min Mat Min Exi Min Mat Gar Mat Fac Gar Fac Low Low Dat Pro Fac Gar Fac Gar Fac Ext Cet Arc Hub Fac Machines Accessed 117 | . 9 . 17 . 2 . 14 2 6 7 2 9 . . 4 . 19 2 1 1 7 4 1 . 5 5 Terminals 77 | . 6 . 12 . . . 12 2 6 5 2 4 . . . . 11 2 . 1 3 4 1 . 4 2 Fabricators 7 | . . . . . . . . . . 1 . 2 . . . . 2 . . . . . . . . 2 Repair Stations 8 | . 1 . 2 . . . . . . . . 1 . . . . 2 . . . 2 . . . . . Recycling Units 10 | . 2 . 2 . . . 1 . . . . 1 . . . . 2 . . . 1 . . . . 1 Scanalyzers 1 | . . . 1 . . . . . . . . . . . . . . . . . . . . . . . Garrison Access 8 | . . . . . . . 1 . . 1 . 1 . . . . 2 . 1 . 1 . . . 1 . Total Hacks 359 | . 24 . 63 . 2 . 47 5 21 20 6 19 . . 25 . 44 2 1 3 18 22 4 . 15 18 Successful 212 | . 15 . 43 . 2 . 22 1 10 8 3 15 . . 25 . 22 2 1 2 9 15 . . 9 8 Failed 146 | . 9 . 20 . . . 25 4 11 12 3 4 . . . . 22 . . 1 9 6 4 . 6 10 Catastrophic 19 | . 1 . 2 . . . 4 2 3 4 . . . . . . 1 . . . . . . . 1 1 Database Lockouts 1 | . . . . . . . . . . . . . . . . . . . . . . 1 . . . . Manual 179 | . 15 . 35 . 2 . 24 . 12 13 2 7 . . . . 21 1 . 2 8 13 1 . 12 11 Terminals 248 | . 14 . 45 . . . 43 5 21 14 6 9 . . . . 28 2 . 3 11 22 4 . 14 7 Fabricators 19 | . . . . . . . . . . 5 . 6 . . . . 4 . . . . . . . . 4 Repair Stations 26 | . 3 . 12 . . . . . . . . 2 . . . . 5 . . . 4 . . . . . Recycling Units 27 | . 7 . 4 . . . 3 . . . . 1 . . . . 3 . . . 2 . . . . 7 Scanalyzers 2 | . . . 2 . . . . . . . . . . . . . . . . . . . . . . . Garrison Access 10 | . . . . . . . 1 . . 1 . 1 . . . . 4 . 1 . 1 . . . 1 . Terminal Hacks 103 | . 2 . 15 . 2 . 10 1 7 2 2 3 . . 25 . 10 1 . 1 4 11 . . 4 3 Record 10 | . . . . . 2 . . . . . . . . . 8 . . . . . . . . . . . Part Schematic 10 | . . . 1 . . . . . . 1 . . . . 8 . . . . . . . . . . . Robot Schematic 6 | . . . . . . . . . . . . . . . 6 . . . . . . . . . . . Robot Analysis 6 | . 2 . 1 . . . 1 . . . . . . . . . . . . . . 2 . . . . Prototype ID Bank 7 | . . . 3 . . . . . . . . . . . 3 . . . . . . 1 . . . . Branch Access Points 5 | . . . 1 . . . . . . . . 1 . . . . 1 . . . 1 . . . . 1 Emergency Access Points 2 | . . . . . . . . 1 . . 1 . . . . . . . . . . . . . . . Machine Index 1 | . . . . . . . . . . . . . . . . . . . . . . 1 . . . . Terminal Index 7 | . . . . . . . 1 . 1 1 . . . . . . 1 . . . 1 . . . 1 1 Alert Level 18 | . . . 2 . . . 4 . 4 . . 1 . . . . 3 . . . 1 1 . . 1 1 Unreport Threat 15 | . . . 3 . . . 2 . 1 . . 1 . . . . 4 . . . 1 3 . . . . Locate Traps 3 | . . . . . . . . . . . . . . . . . 1 . . . . 1 . . 1 . Patrol Status 4 | . . . 1 . . . . . 1 . . . . . . . . . . . . 1 . . 1 . Hauler Manifests 3 | . . . 1 . . . 2 . . . . . . . . . . . . . . . . . . . Registered Components 1 | . . . 1 . . . . . . . . . . . . . . . . . . . . . . . Zone Layout 2 | . . . 1 . . . . . . . . . . . . . . . . . . 1 . . . . Garrison Registry 2 | . . . . . . . . . . . 1 . . . . . . 1 . . . . . . . . Patrol Navigation 1 | . . . . . . . . . . . . . . . . . . . . 1 . . . . . . Fabricator Hacks 5 | . . . . . . . . . . 1 . 2 . . . . 2 . . . . . . . . . Network Status 4 | . . . . . . . . . . 1 . 2 . . . . 1 . . . . . . . . . Build 1 | . . . . . . . . . . . . . . . . . 1 . . . . . . . . . Repair Station Hacks 19 | . 2 . 11 . . . . . . . . 2 . . . . 2 . . . 2 . . . . . Scan Component 10 | . 1 . 6 . . . . . . . . 1 . . . . 1 . . . 1 . . . . . Repair 8 | . 1 . 5 . . . . . . . . 1 . . . . 1 . . . . . . . . . Refit 1 | . . . . . . . . . . . . . . . . . . . . . 1 . . . . . Recycling Unit Hacks 6 | . 1 . 2 . . . . . . . . 1 . . . . . . . . 1 . . . . 1 Retrieve Components 6 | . 1 . 2 . . . . . . . . 1 . . . . . . . . 1 . . . . 1 Scanalyzer . | . . . . . . . . . . . . . . . . . . . . . . . . . . . Garrison Access Hacks 6 | . . . . . . . 1 . . 1 . 1 . . . . 1 . 1 . 1 . . . . . Unlock Access 4 | . . . . . . . 1 . . 1 . . . . . . 1 . 1 . . . . . . . Seal Access 2 | . . . . . . . . . . . . 1 . . . . . . . . 1 . . . . . Unauthorized Hacks 72 | . 9 . 15 . . . 11 . 3 4 1 6 . . . . 7 1 . 1 1 4 . . 5 4 Terminals 59 | . 7 . 14 . . . 11 . 3 2 1 3 . . . . 7 1 . 1 1 4 . . 4 . Track 1 | . . . . . . . . . . . . . . . . . . . . 1 . . . . . . Botnet 7 | . . . 2 . . . 3 . . . . . . . . . 1 . . . . 1 . . . . Disrupt 1 | . . . . . . . . . . . . . . . . . . . . . . . . . 1 . Operators 10 | . 1 . 2 . . . 1 . 1 . . 1 . . . . 1 . . . 1 1 . . 1 . Skim 36 | . 6 . 10 . . . 7 . 2 2 . 2 . . . . 5 . . . . 2 . . . . Sabotage 2 | . . . . . . . . . . . . . . . . . . . . . . . . . 2 . Override 2 | . . . . . . . . . . . 1 . . . . . . 1 . . . . . . . . Fabricators 6 | . . . . . . . . . . 2 . 3 . . . . . . . . . . . . . 1 Report 2 | . . . . . . . . . . 1 . 1 . . . . . . . . . . . . . . Prioritize 1 | . . . . . . . . . . . . 1 . . . . . . . . . . . . . . Haulers 2 | . . . . . . . . . . 1 . 1 . . . . . . . . . . . . . . Overload 1 | . . . . . . . . . . . . . . . . . . . . . . . . . . 1 Repair Stations 1 | . 1 . . . . . . . . . . . . . . . . . . . . . . . . . Patch 1 | . 1 . . . . . . . . . . . . . . . . . . . . . . . . . Recycling Units 4 | . 1 . . . . . . . . . . . . . . . . . . . . . . . . 3 Reject 1 | . . . . . . . . . . . . . . . . . . . . . . . . . . 1 Recyclers 1 | . . . . . . . . . . . . . . . . . . . . . . . . . . 1 Mask 1 | . . . . . . . . . . . . . . . . . . . . . . . . . . 1 Tunnel 1 | . 1 . . . . . . . . . . . . . . . . . . . . . . . . . Scanalyzers 1 | . . . 1 . . . . . . . . . . . . . . . . . . . . . . . Extract 1 | . . . 1 . . . . . . . . . . . . . . . . . . . . . . . Garrison Access 1 | . . . . . . . . . . . . . . . . . . . . . . . . . 1 . Watchers 1 | . . . . . . . . . . . . . . . . . . . . . . . . . 1 . Data Cores Recovered 3 | . . . . . . . . . . . . . . . . . 1 . . . . 1 . . 1 . Used 1 | . . . . . . . . . . . . . . . . . . . . . . 1 . . . . Hacking Detections 96 | . 9 . 15 . . . 13 2 5 7 2 6 . . . . 19 . 1 1 6 4 1 . 2 3 Full Trace Events 10 | . 1 . 2 . . . 2 2 1 1 . . . . . . 1 . . . . . . . . . Feedback Events . | . . . . . . . . . . . . . . . . . . . . . . . . . . . Feedback Blocked . | . . . . . . . . . . . . . . . . . . . . . . . . . . . Robot Schematics Acquired 6 | . . . . . . . . . . . . . . . 6 . . . . . . . . . . . Robots Built . | . . . . . . . . . . . . . . . . . . . . . . . . . . . Authchips . | . . . . . . . . . . . . . . . . . . . . . . . . . . . Time . | . . . . . . . . . . . . . . . . . . . . . . . . . . . Total Robot Build Rating . | . . . . . . . . . . . . . . . . . . . . . . . . . . . Part Schematics Acquired 14 | . . . 5 . . . . . . 1 . . . . 8 . . . . . . . . . . . Parts Built 1 | . . . . . . . . . . . . . . . . . 1 . . . . . . . . . Authchips . | . . . . . . . . . . . . . . . . . . . . . . . . . . . Time 64 | . . . . . . . . . . . . . . . . . 64 . . . . . . . . . Total Part Build Rating 8 | . . . . . . . . . . . . . . . . . 8 . . . . . . . . . Parts Repaired 8 | . 1 . 5 . . . . . . . . 1 . . . . 1 . . . . . . . . . Time 264 | . 32 . 160 . . . . . . . . 44 . . . . 28 . . . . . . . . . Parts Recycled . | . . . . . . . . . . . . . . . . . . . . . . . . . . . Recycled Matter . | . . . . . . . . . . . . . . . . . . . . . . . . . . . Retrieved Matter . | . . . . . . . . . . . . . . . . . . . . . . . . . . . Retrieved Components 37 | . 9 . 19 . . . . . . . . 6 . . . . . . . . 3 . . . . . Parts Scanalyzed . | . . . . . . . . . . . . . . . . . . . . . . . . . . . Part Schematics Acquired . | . . . . . . . . . . . . . . . . . . . . . . . . . . . Parts Damaged . | . . . . . . . . . . . . . . . . . . . . . . . . . . . Bothacking | -11 -10 -10 -9 -9 -9 -8 -8 -8 -8 -7 -7 -7 -7 -7 -7 -6 -6 -6 -6 -6 -5 -5 -5 -5 -5 -4 ------------ Run | Yrd Mat Min Mat Min Exi Min Mat Gar Mat Fac Gar Fac Low Low Dat Pro Fac Gar Fac Gar Fac Ext Cet Arc Hub Fac Used RIF Installer . | . . . . . . . . . . . . . . . . . . . . . . . . . . . Robots Hacked 3 | . . . . . . . . . . . . . . . 1 . 1 . . . . 1 . . . . Non-combat 1 | . . . . . . . . . . . . . . . . . 1 . . . . . . . . . Combat 2 | . . . . . . . . . . . . . . . 1 . . . . . . 1 . . . . Robot Hacks Applied 4 | . . . . . . . . . . . . . . . 1 . 2 . . . . 1 . . . . parse_system 2 | . . . . . . . . . . . . . . . 1 . . . . . . 1 . . . . find_chute 2 | . . . . . . . . . . . . . . . . . 2 . . . . . . . . . Relay Couplers Released 70 | . . . . . . . . 16 . . 20 . . . . . 1 14 3 15 . . . . 1 . Machine Destruction 64 | . . . . . . . . 16 . . 17 . . . . . 1 14 . 15 . . . . 1 . Programmers 6 | . . . . . . . . . . . 3 . . . . . . . 3 . . . . . . . Fabnet Peak Effective % . | . . . . . . . . . . . . . . . . . . . . . . . . . . . Robots Rewired 28 | . . . . . . . . 3 . . 6 . . . . . . 2 . . . 17 . . . . Allies Hacked . | . . . . . . . . . . . . . . . . . . . . . . . . . . . Hacks Repelled . | . . . . . . . . . . . . . . . . . . . . . . . . . . . Allies | -11 -10 -10 -9 -9 -9 -8 -8 -8 -8 -7 -7 -7 -7 -7 -7 -6 -6 -6 -6 -6 -5 -5 -5 -5 -5 -4 -------- Run | Yrd Mat Min Mat Min Exi Min Mat Gar Mat Fac Gar Fac Low Low Dat Pro Fac Gar Fac Gar Fac Ext Cet Arc Hub Fac Total Allies 53 | . . . . 4 . . . 3 . . 6 . . . . . 3 2 . . . 30 5 . . . Largest Group 19 | . . . . 3 1 . . 3 . . 6 . . . . . 3 3 2 . . 19 17 13 11 . Highest-Rated Group 872 | . . . . 40 31 . . 87 . . 96 . . . . . 93 226 226 . . 648 872 773 584 . Highest-Rated Ally 159 | . . . . 31 31 . . 31 . . 16 . . . . . 31 116 116 . . 159 159 153 96 . Warlord Squad Rendezvous 1 | . . . . . . . . . . . . . . . . . 1 . . . . . . . . . Muscle 1 | . . . . . . . . . . . . . . . . . 1 . . . . . . . . . Total Orders 12 | . . . . . . . . . 2 . . . . . . 2 . 4 . . . 1 2 1 . . STAY 5 | . . . . . . . . . . . . . . . . . . 2 . . . . 2 1 . . FOLLOW 2 | . . . . . . . . . . . . . . . . . . 2 . . . . . . . . EXPLORE 5 | . . . . . . . . . 2 . . . . . . 2 . . . . . 1 . . . . Ally Attacks 494 | . . . . 23 . . . 10 . . 10 . . . . . . 56 20 . . 155 42 37 141 . Total Damage 12487 | . . . . 187 . . . 189 . . 58 . . . . . . 1151 736 . . 2976 1018 753 5419 . Kills 91 | . . . . 2 . . . 2 . . . . . . . . . 7 12 . . 21 8 4 35 . Allies Corrupted . | . . . . . . . . . . . . . . . . . . . . . . . . . . . Allies Melted . | . . . . . . . . . . . . . . . . . . . . . . . . . . . Intel | -11 -10 -10 -9 -9 -9 -8 -8 -8 -8 -7 -7 -7 -7 -7 -7 -6 -6 -6 -6 -6 -5 -5 -5 -5 -5 -4 ------- Run | Yrd Mat Min Mat Min Exi Min Mat Gar Mat Fac Gar Fac Low Low Dat Pro Fac Gar Fac Gar Fac Ext Cet Arc Hub Fac Robot Analysis Total 6 | . 2 . 1 . . . 1 . . . . . . . . . . . . . . 2 . . . . Derelict Logs Recovered 8 | . . 1 . 2 . . . . . . . . 1 2 . 2 . . . . . . . . . . Drone Launches 5 | . . . . . . . . . 2 . . . . . . 2 . . . . . 1 . . . . Drone Recoveries 2 | . . . . . . . . . 2 . . . . . . . . . . . . . . . . . Exploration | -11 -10 -10 -9 -9 -9 -8 -8 -8 -8 -7 -7 -7 -7 -7 -7 -6 -6 -6 -6 -6 -5 -5 -5 -5 -5 -4 ------------- Run | Yrd Mat Min Mat Min Exi Min Mat Gar Mat Fac Gar Fac Low Low Dat Pro Fac Gar Fac Gar Fac Ext Cet Arc Hub Fac Turns Passed 36426 | 168 2042 922 2888 896 472 1130 3050 2329 2216 1601 1515 1370 755 984 222 1123 3361 1154 976 825 1470 1774 372 550 497 1764 Spaces Moved 14887 | 65 955 541 1349 463 294 585 1097 769 588 585 635 655 383 349 89 438 1042 367 350 254 679 901 180 173 221 880 Core 239 | 3 . . . . . . . . . . . . . . . . . . . . . . . . . 236 Treads 13489 | 62 955 541 1349 463 294 585 1097 769 588 585 635 511 . . . 244 1042 367 350 254 679 901 180 173 221 644 Legs . | . . . . . . . . . . . . . . . . . . . . . . . . . . . Wheels 1159 | . . . . . . . . . . . . 144 383 349 89 194 . . . . . . . . . . Hover . | . . . . . . . . . . . . . . . . . . . . . . . . . . . Flight . | . . . . . . . . . . . . . . . . . . . . . . . . . . . Fastest Speed 50 | 50 160 160 160 160 160 160 160 240 243 242 160 125 140 170 245 242 162 240 240 166 162 162 160 160 160 50 Average Speed 190 | 154 160 160 171 162 160 160 204 240 243 242 164 161 167 258 246 250 242 240 240 206 166 162 160 160 160 130 Slowest Speed 410 | 160 160 160 240 240 160 160 240 243 243 242 242 410 170 290 275 275 320 240 320 249 167 162 162 160 160 165 Overloaded Moves . | . . . . . . . . . . . . . . . . . . . . . . . . . . . Propulsion Burnouts . | . . . . . . . . . . . . . . . . . . . . . . . . . . . Robots Hopped 2 | . . . . . . . . . . . . . . . . . . . . . . 2 . . . . Cave-ins Triggered 7 | . . . . . . . . . . . . 1 . . . . . . . . . . . . 1 5 Exploration Rate (%) 63 | 5 96 93 93 96 70 98 89 95 70 24 81 21 58 60 74 79 35 58 13 53 25 88 84 93 30 26 Regions Visited 26 Branch Regions 12 Pre-discovered Areas 9 | . 2 . 1 . . . 2 . . . . . 2 . 1 . 1 . . . . . . . . . Known Exits Taken 14 | . . . 1 . 1 1 1 . 1 1 . 1 1 . . 1 1 . 1 . 1 1 . . 1 . Unknown Exits Taken 8 | 1 1 1 . 1 . . . . . . . . . 1 1 . . . . . . . 1 1 . . Scrap Searched 19 | . . 1 . 2 . 2 . . . . . . 8 2 . 4 . . . . . . . . . . Spaces Dug 261 | . 6 . 20 . . . 16 2 18 15 24 14 4 4 . . 53 . 2 9 5 3 . . 18 48 Terrain Destroyed 1102 | . 9 . 24 . . 30 55 19 88 23 68 84 106 105 . 105 179 29 2 16 21 24 . 1 23 91 Melee 95 | . . . 2 . . . 13 2 . 6 9 . . . . . . . . 9 . . . . 6 48 Projectile 396 | . 9 . 7 . . . 9 1 88 17 16 38 8 8 . 4 94 . 2 7 17 24 . 1 17 29 AOE 611 | . . . 15 . . 30 33 16 . . 43 46 98 97 . 101 85 29 . . 4 . . . . 14 Terrain Rammed . | . . . . . . . . . . . . . . . . . . . . . . . . . . . Walls Destroyed . | . . . . . . . . . . . . . . . . . . . . . . . . . . . Machines Disabled . | . . . . . . . . . . . . . . . . . . . . . . . . . . . Actions | -11 -10 -10 -9 -9 -9 -8 -8 -8 -8 -7 -7 -7 -7 -7 -7 -6 -6 -6 -6 -6 -5 -5 -5 -5 -5 -4 --------- Run | Yrd Mat Min Mat Min Exi Min Mat Gar Mat Fac Gar Fac Low Low Dat Pro Fac Gar Fac Gar Fac Ext Cet Arc Hub Fac Total 20223 | 95 1270 587 1719 563 296 731 1693 1039 1176 703 885 888 474 397 95 454 1549 510 421 459 902 1111 248 381 311 1266 Wait 2636 | . 153 34 173 66 . 109 397 58 439 39 42 135 54 18 . 1 183 47 11 100 80 88 37 158 34 180 Move 14855 | 64 954 540 1348 462 293 584 1097 766 587 585 634 653 382 348 88 437 1042 366 350 253 678 896 179 172 219 878 Hop 2 | . . . . . . . . . . . . . . . . . . . . . . 2 . . . . Pick Up 242 | 6 21 1 18 2 1 . 14 24 15 5 10 15 6 3 . 2 23 4 6 6 22 7 5 3 3 20 Fast Attach 93 | 5 1 . 5 . . . 5 6 4 3 2 4 2 1 . . 13 1 6 10 8 3 1 3 . 10 Attach 156 | 2 1 2 5 2 . . 5 18 6 2 8 7 3 4 2 4 16 3 5 16 12 5 . 3 2 23 Detach 54 | . . 1 . . . . 4 2 4 1 3 1 1 . 4 2 4 . 1 4 9 6 . 1 . 6 Swap 297 | . 15 . 27 4 1 3 26 17 6 14 15 10 6 6 . 2 52 15 10 4 19 16 5 4 11 9 Drop 185 | . 15 1 21 1 1 . 22 7 14 7 13 7 6 . . . 23 1 3 1 11 8 10 2 4 7 Fire 1393 | 17 108 7 108 25 . 27 102 94 99 39 101 54 14 17 . 6 188 61 24 36 62 76 11 34 26 57 Melee 201 | . . . 4 . . . 17 9 . 6 56 . . . 1 . 2 12 . 14 . . . . 8 72 Ram 1 | . . . . . . . . . . . . . . . . . . . . . . . . . . 1 Kick . | . . . . . . . . . . . . . . . . . . . . . . . . . . . Crush 42 | 1 2 1 10 1 . 8 4 . 2 . 1 1 . . . . 3 . 5 . 1 . . 1 . 1 Escape Stasis 18 | . . . . . . . . 6 . 2 . 1 . . . . . . . 6 . . . . 1 2 Rewire 27 | . . . . . . . . 23 . . . . . . . . . . . . . 4 . . . . Trap . | . . . . . . . . . . . . . . . . . . . . . . . . . . . Miscellaneous 21 | . . . . . . . . 9 . . . . . . . . . . . 9 . . . . 3 . Route ------- -11/Scrapyard -10/Materials (discovered 5 exits: *Mat x3 / [*Min] / *Sub) -10/Mines (discovered 2 exits: *Mat x2) -9/Materials (discovered 4 exits: *Mat x3 / *Min) -9/Mines (discovered 3 exits: *Mat x2 / *Exi) -9/Exiles -8/Mines (discovered 2 exits: *Mat x2) -8/Materials (discovered 4 exits: *Fac x3 / Gar) -8/Garrison (discovered 3 exits: *Mat x3) -8/Materials (discovered 2 exits: *Fac x2) -7/Factory (discovered 4 exits: *Fac / Sto / *Low / Gar) -7/Garrison (discovered 3 exits: *Fac x3) -7/Factory (discovered 3 exits: Sto / *Low x2) -7/Lower Caves -7/Lower Caves (discovered 2 exits: *Fac / *Dat) -7/Data Miner -6/Proximity Caves -6/Factory (discovered 7 exits: *Fac x4 / *Low x2 / Gar) -6/Garrison (discovered 4 exits: *Fac x4) -6/Factory (discovered 2 exits: Low / Gar) -6/Garrison -5/Factory (discovered 4 exits: *Upp x2 / *Ext x2) -5/Extension (discovered 2 exits: *Fac / *Cet) -5/Cetus (discovered 2 exits: *Fac / [*Arc]) -5/Archives (discovered 3 exits: *Fac / *Hub x2) -5/Hub_04(d) (discovered 2 exits: *Fac x2) -4/Factory (discovered 3 exits: Upp x2 / Arm) History --------- Turn | Location | Event 10 | -11/Scrapyard | Discovered new exit (range 15) 169 | -11/Scrapyard | Entered Materials 303 | -10/Materials | Build established: Mutant 433 | -10/Materials | Discovered new exit (range 8) 666 | -10/Materials | Discovered new exit (range 8) 745 | -10/Materials | Core integrity fell below 50% 871 | -10/Materials | Discovered new exit (range 7) 1364 | -10/Materials | Discovered new exit (range 16) 1383 | -10/Materials | Identified exit to Subcaves 1383 | -10/Materials | Learned location of 1 exit from Materials 1423 | -10/Materials | Loaded intel: 8 terminal locations 1453 | -10/Materials | Loaded intel: 11 interactive machine locations 1486 | -10/Materials | Learned location of 1 exit from Recycling 1488 | -10/Materials | Learned 2 Mines zone layouts 1489 | -10/Materials | Learned Storage emergency access door positions 1496 | -10/Materials | Learned location of Mines (-8) 1514 | -10/Materials | Learned 4 Subcaves zone layouts 2077 | -10/Materials | Repaired Autogun 2211 | -10/Materials | Entered Mines 2263 | -10/Mines | Met a Derelict bent on vengeance 2355 | -10/Mines | Assembled infested the area 2487 | -10/Mines | Discovered new exit (range 8) 2556 | -10/Mines | Learned Materials terminal intel 2669 | -10/Mines | Discovered new exit (range 11) 3133 | -10/Mines | Entered Materials 3133 | -9/Materials | Evolved 2 slots: Utility x1, Weapon x1 3134 | -9/Materials | Identified exit to Mines 3135 | -9/Materials | Identified exit to Materials 3136 | -9/Materials | Loaded intel: 12 terminal locations 3426 | -9/Materials | Build established: Tank 3513 | -9/Materials | Discovered exit to Materials (range 6) 3703 | -9/Materials | Learned Storage stockpile data 3704 | -9/Materials | Loaded intel: 23 trap records 3713 | -9/Materials | Learned location of 2 exits from Materials 3793 | -9/Materials | Repaired Autogun 3826 | -9/Materials | Repaired Autogun 4226 | -9/Materials | Build established: Scavenger-Tank 4633 | -9/Materials | Build established: Tank 5284 | -9/Materials | Repaired Autogun 5318 | -9/Materials | Repaired Autogun 5351 | -9/Materials | Repaired Autogun 5658 | -9/Materials | Learned 8 Materials zone layouts 5663 | -9/Materials | Learned 4 Recycling zone layouts 5680 | -9/Materials | Learned Materials trap positions 6021 | -9/Materials | Entered Mines 6110 | -9/Mines | Murdered YI-UF0 6127 | -9/Mines | Found Prototype Storage 6143 | -9/Mines | Identified YI-UF0's Bottomless Matter Pit 6276 | -9/Mines | Assisted by bots powering up and referring to "LRC-V3" 6309 | -9/Mines | Learned Materials security intel 6416 | -9/Mines | Lost 3 allies 6571 | -9/Mines | Learned Materials stockpile data 6728 | -9/Mines | Deemed a non-threat by the Exiles lab entrance 6728 | -9/Mines | Discovered new exit (range 5) 6788 | -9/Mines | Received a Mining Laser from a helpful Derelict 6917 | -9/Mines | Entered Exiles 6917 | -9/Exiles | Found Exiles lab abandoned 6917 | -9/Exiles | Accompanied by 1 ally 6918 | -9/Exiles | Identified exit to Mines 7389 | -9/Exiles | Entered Mines 8519 | -8/Mines | Entered Materials 8519 | -8/Materials | Evolved 2 slots: Propulsion x1, Utility x1 8520 | -8/Materials | Identified exit to Factory 8522 | -8/Materials | Loaded intel: 11 trap records 9606 | -8/Materials | Garrison activated, responded to threat 11210 | -8/Materials | Learned 2 Storage zone layouts 11252 | -8/Materials | Learned location of 1 exit from Lower Caves 11302 | -8/Materials | Learned 4 Factory zone layouts 11317 | -8/Materials | Learned Factory stockpile data 11332 | -8/Materials | Learned 4 Factory zone layouts 11356 | -8/Materials | Learned Factory trap positions 11569 | -8/Materials | Identified exit to Garrison 11569 | -8/Materials | Entered Garrison 11662 | -8/Garrison | Triggered checkpoint 11739 | -8/Garrison | Lost 5 parts (1n1u3w) 11752 | -8/Garrison | Garrison Relay disabled 11963 | -8/Garrison | Triggered checkpoint 12178 | -8/Garrison | Garrison Relay disabled 12232 | -8/Garrison | Phase Generator disabled 12358 | -8/Garrison | Discovered new exit (range 11) 12636 | -8/Garrison | Build established: Scavenger-Tank 12667 | -8/Garrison | Triggered checkpoint 12673 | -8/Garrison | Discovered new exit (range 14) 12705 | -8/Garrison | Lost 3 allies 12763 | -8/Garrison | Garrison Relay disabled 13099 | -8/Garrison | Spotted B-75 Beast 13115 | -8/Garrison | Triggered checkpoint 13156 | -8/Garrison | Core integrity fell below 50% 13168 | -8/Garrison | Destroyed B-75 Beast 13227 | -8/Garrison | Lost 10 parts (1p3n3u3w) 13266 | -8/Garrison | Found Imp. Powered Armor 13299 | -8/Garrison | Discovered new exit (range 10) 13321 | -8/Garrison | Attempted to access garrison exit controls, blocked by remote lockdown 13402 | -8/Garrison | Garrison Relay disabled 13553 | -8/Garrison | Attempted to access garrison exit controls, blocked by remote lockdown 13661 | -8/Garrison | Triggered checkpoint 13898 | -8/Garrison | Entered Materials 14679 | -8/Materials | Build established: Scavenger-Gunner 14973 | -8/Materials | Core integrity fell below 20% 15045 | -8/Materials | Discovered exit to Factory (range 16) 15623 | -8/Materials | Discovered exit to Factory (range 16) 15666 | -8/Materials | Build established: Tank 15702 | -8/Materials | Garrison activated, responded to threat 16074 | -8/Materials | Build established: Scavenger-Gunner 16114 | -8/Materials | Entered Factory 16114 | -7/Factory | Evolved 2 slots: Propulsion x1, Utility x1 16115 | -7/Factory | Identified exit to Storage 16117 | -7/Factory | Loaded intel: 94 trap records 16269 | -7/Factory | Discovered new exit (range 15) 16916 | -7/Factory | Found Prototype Launcher 16916 | -7/Factory | Identified Rocket Array 17646 | -7/Factory | Discovered new exit (range 15) 17698 | -7/Factory | Build established: Tank 17715 | -7/Factory | Identified exit to Garrison 17715 | -7/Factory | Entered Garrison 18137 | -7/Garrison | Build established: Mutant 18173 | -7/Garrison | Garrison Relay disabled 18189 | -7/Garrison | Triggered checkpoint 18401 | -7/Garrison | Triggered checkpoint 18563 | -7/Garrison | Triggered checkpoint 18594 | -7/Garrison | Destroyed 12 combat bots 18619 | -7/Garrison | Lost 6 allies 18663 | -7/Garrison | Identified exit to Factory 18728 | -7/Garrison | Garrison Relay disabled 18852 | -7/Garrison | Build established: Scavenger-Tank 18955 | -7/Garrison | Lost 3 parts (1p1u1w) 19011 | -7/Garrison | Triggered checkpoint 19044 | -7/Garrison | Garrison Relay disabled 19056 | -7/Garrison | Discovered exit to Factory (range 72) 19056 | -7/Garrison | Discovered exit to Factory (range 52) 19056 | -7/Garrison | Discovered exit to Factory (range 7) 19133 | -7/Garrison | Triggered checkpoint 19196 | -7/Garrison | Garrison Relay disabled 19230 | -7/Garrison | Entered Factory 19544 | -7/Factory | Build established: Scavenger-Gunner 19772 | -7/Factory | Crushed by falling debris 20031 | -7/Factory | Identified exit to Lower Caves 20273 | -7/Factory | Destroyed 8 combat bots 20279 | -7/Factory | Lost 3 parts (1p2n) 20430 | -7/Factory | First assault squad dispatched 20453 | -7/Factory | Repaired Plasma Cannon? 20600 | -7/Factory | Entered Lower Caves 20601 | -7/Lower Caves | Identified exit to Lower Caves 20676 | -7/Lower Caves | Attracted the attention of an 0b10 checkpoint 20688 | -7/Lower Caves | Met a Warlord Commander 20689 | -7/Lower Caves | Learned location of Warlord (-4) 20690 | -7/Lower Caves | Warlord Commander delivered Encrypted Comm Array 20695 | -7/Lower Caves | Found Encrypted Comm Array 20701 | -7/Lower Caves | Destroyed 7 combat bots 21067 | -7/Lower Caves | Build established: Scavenger-Tank 21260 | -7/Lower Caves | Learned location of Zion (-6) 21343 | -7/Lower Caves | Attracted the attention of an 0b10 outpost 21355 | -7/Lower Caves | Entered another Lower Caves area 21374 | -7/Lower Caves | Identified exit to Factory 21425 | -7/Lower Caves | Spotted B-75 Beast 21462 | -7/Lower Caves | Destroyed B-75 Beast 21492 | -7/Lower Caves | Lost 4 parts (1p1n1u1w) 21521 | -7/Lower Caves | Encountered a Warlord checkpoint 21524 | -7/Lower Caves | Attracted the attention of an 0b10 checkpoint 21828 | -7/Lower Caves | Learned 4 Factory zone layouts 22117 | -7/Lower Caves | Discovered new exit (range 13) 22339 | -7/Lower Caves | Entered Data Miner 22339 | -7/Data Miner | Discovered new exit (range 7) 22389 | -7/Data Miner | Met Data Miner 22431 | -7/Data Miner | Learned location of Section 7 (-2) 22478 | -7/Data Miner | Received God Mode back door access code from Data Miner 22561 | -7/Data Miner | Entered Proximity Caves 22640 | -6/Proximity Caves | Build established: Scavenger-Mutant 22661 | -6/Proximity Caves | Core integrity fell below 50% 22984 | -6/Proximity Caves | Learned location of 1 exit from Factory 23057 | -6/Proximity Caves | Spotted B-75 Beast 23087 | -6/Proximity Caves | Destroyed B-75 Beast 23463 | -6/Proximity Caves | Discovered exit to Factory (range 10) 23477 | -6/Proximity Caves | Attracted the attention of an 0b10 checkpoint 23684 | -6/Proximity Caves | Entered Factory 23684 | -6/Factory | Evolved 2 slots: Power x1, Utility x1 23685 | -6/Factory | Identified exit to Lower Caves 23686 | -6/Factory | Identified exit to Factory 23719 | -6/Factory | Discovered exit to Factory (range 12) 24106 | -6/Factory | Build established: Scavenger-Tank 24138 | -6/Factory | Repaired Arm. Medium Treads 25966 | -6/Factory | Garrison activated, responded to threat 26200 | -6/Factory | Fabricated Imp. Heavy Siege Treads (x1) 26282 | -6/Factory | Garrison activated, responded to threat 26393 | -6/Factory | Garrison activated, responded to threat 26414 | -6/Factory | Incoming investigation squad redirected 26433 | -6/Factory | Build established: Hacker-Tank 26619 | -6/Factory | Spotted B-75 Beast 26648 | -6/Factory | Incoming assault squad redirected 26658 | -6/Factory | Learned Hub_04(d) stockpile data 26675 | -6/Factory | Joined by Warlord Muscle squad 26705 | -6/Factory | Destroyed B-75 Beast 26866 | -6/Factory | Learned location of 1 exit from Hub_04(d) 26909 | -6/Factory | Learned 4 Factory zone layouts 26971 | -6/Factory | Learned location of 1 exit from Hub_04(d) 27037 | -6/Factory | Identified exit to Garrison 27045 | -6/Factory | Entered Garrison 27045 | -6/Garrison | Accompanied by 3 allies 27046 | -6/Garrison | Identified exit to Factory 27099 | -6/Garrison | Triggered checkpoint 27140 | -6/Garrison | Garrison Relay disabled 27204 | -6/Garrison | Discovered exit to Factory (range 56) 27204 | -6/Garrison | Discovered exit to Factory (range 60) 27204 | -6/Garrison | Discovered exit to Factory (range 24) 27204 | -6/Garrison | Discovered exit to Factory (range 52) 27243 | -6/Garrison | Spotted B-75 Beast 27256 | -6/Garrison | Allies destroyed B-75 Beast 27285 | -6/Garrison | Destroyed 7 combat bots 27343 | -6/Garrison | Triggered checkpoint 27401 | -6/Garrison | Triggered checkpoint 27469 | -6/Garrison | Garrison Relay disabled 27506 | -6/Garrison | Build established: Scavenger-Tank 27698 | -6/Garrison | Spotted B-86 Titan 27733 | -6/Garrison | Rewired B-86 Titan 27762 | -6/Garrison | Allies destroyed B-86 Titan 27767 | -6/Garrison | Rewired B-86 Titan 27909 | -6/Garrison | Triggered checkpoint 27968 | -6/Garrison | Garrison Relay disabled 28199 | -6/Garrison | Entered Factory 28199 | -6/Factory | Accompanied by 2 allies 28899 | -6/Factory | First assault squad dispatched 28917 | -6/Factory | Incoming assault squad redirected 29175 | -6/Factory | Identified exit to Garrison 29175 | -6/Factory | Entered Garrison 29265 | -6/Garrison | Garrison Relay disabled 29333 | -6/Garrison | Phase Generator disabled 29495 | -6/Garrison | Triggered checkpoint 29495 | -6/Garrison | Spotted B-75 Beast 29533 | -6/Garrison | Triggered checkpoint 29578 | -6/Garrison | Lost 6 parts (1p1n2u2w) 29611 | -6/Garrison | Core integrity fell below 50% 29630 | -6/Garrison | Destroyed B-75 Beast 29657 | -6/Garrison | Lost 7 parts (2n4u1w) 29663 | -6/Garrison | Garrison Relay disabled 29691 | -6/Garrison | Garrison Relay disabled 29985 | -6/Garrison | Discovered exit to Factory (range 10) 29992 | -6/Garrison | Build established: Scavenger-Skirmisher 30000 | -6/Garrison | Entered Factory 30000 | -5/Factory | Evolved 2 slots: Propulsion x1, Utility x1 30300 | -5/Factory | First assault squad dispatched 30514 | -5/Factory | Lost 6 parts (1p2n1u2w) 30517 | -5/Factory | Destroyed 10 combat bots 30697 | -5/Factory | Discovered new exit (range 22) 30795 | -5/Factory | Found Launcher Loader 31181 | -5/Factory | Identified exit to Upper Caves 31181 | -5/Factory | Identified exit to Extension 31470 | -5/Factory | Entered Extension 31471 | -5/Extension | Identified exit to Cetus 31478 | -5/Extension | Build established: Hacker-Gunner 31536 | -5/Extension | Rescued a captive Derelict 31885 | -5/Extension | Central database locked down 32135 | -5/Extension | Rescued a captive Derelict 32137 | -5/Extension | Rescued a captive Derelict 32237 | -5/Extension | Rescued a captive Derelict 32238 | -5/Extension | Rescued a captive Derelict 32452 | -5/Extension | Spotted B-75 Beast 32472 | -5/Extension | Spotted B-75 Beast 32472 | -5/Extension | Allies destroyed B-75 Beast 32493 | -5/Extension | Allies destroyed B-75 Beast 32512 | -5/Extension | Lost 3 allies 32625 | -5/Extension | Rescued a captive Derelict 32626 | -5/Extension | Rescued a captive Derelict 32743 | -5/Extension | Rescued A7 32788 | -5/Extension | Lost 4 allies 32811 | -5/Extension | Rescued a captive Derelict 32812 | -5/Extension | Rescued a captive Derelict 32874 | -5/Extension | Rescued a captive Derelict 32889 | -5/Extension | Build established: Commander-Gunner 32891 | -5/Extension | Rescued a captive Derelict 32970 | -5/Extension | First assault squad dispatched 33003 | -5/Extension | Incoming assault squad redirected 33135 | -5/Extension | Rescued a captive Derelict 33165 | -5/Extension | Discovered new exit (range 10) 33244 | -5/Extension | Entered Cetus 33244 | -5/Cetus | Accompanied by 17 allies (A7) 33249 | -5/Cetus | Acquired a Cetus Manufacturing Module code from A7 33268 | -5/Cetus | Spotted Cetus Guard 33268 | -5/Cetus | Spotted Cetus Guard 33268 | -5/Cetus | Spotted Cetus Guard 33268 | -5/Cetus | Spotted Cetus Guard 33280 | -5/Cetus | Allies destroyed Cetus Guard 33283 | -5/Cetus | Destroyed Cetus Guard 33289 | -5/Cetus | Allies destroyed Cetus Guard 33292 | -5/Cetus | Allies destroyed Cetus Guard 33316 | -5/Cetus | Lost 5 allies 33398 | -5/Cetus | Escorted A7 to Cetus Mainframe 33413 | -5/Cetus | Started Cetus Manufacturing Module 33438 | -5/Cetus | Manufactured an Enhanced Grunt 33452 | -5/Cetus | Discovered new exit (range 22) 33463 | -5/Cetus | Manufactured an Enhanced Grunt 33486 | -5/Cetus | Spotted Cetus Guard 33487 | -5/Cetus | Spotted Cetus Guard 33487 | -5/Cetus | Spotted Cetus Guard 33487 | -5/Cetus | Spotted Cetus Guard 33488 | -5/Cetus | Manufactured an Enhanced Grunt 33490 | -5/Cetus | Discovered new exit (range 21) 33494 | -5/Cetus | Allies destroyed Cetus Guard 33496 | -5/Cetus | Allies destroyed Cetus Guard 33498 | -5/Cetus | Allies destroyed Cetus Guard 33506 | -5/Cetus | Allies destroyed Cetus Guard 33513 | -5/Cetus | Manufactured an Enhanced Grunt 33519 | -5/Cetus | Met Revision 17 33538 | -5/Cetus | Manufactured an Enhanced Grunt 33616 | -5/Cetus | Entered Archives 33616 | -5/Archives | Accompanied by 14 allies (A7) 33621 | -5/Archives | Received a hacking code to weaken MAIN.C 33689 | -5/Archives | Discovered new exit (range 17) 33697 | -5/Archives | Discovered new exit (range 15) 33775 | -5/Archives | Discovered new exit (range 13) 34166 | -5/Archives | Entered Hub_04(d) 34166 | -5/Hub_04(d) | Accompanied by 11 allies 34167 | -5/Hub_04(d) | Identified exit to Factory 34264 | -5/Hub_04(d) | Garrison activated, responded to threat 34271 | -5/Hub_04(d) | Spotted B-75 Beast 34292 | -5/Hub_04(d) | Lost 6 allies 34466 | -5/Hub_04(d) | First assault squad dispatched 34500 | -5/Hub_04(d) | Build established: Hacker-Gunner 34567 | -5/Hub_04(d) | Network Hub disabled 34635 | -5/Hub_04(d) | Crushed by falling debris 34643 | -5/Hub_04(d) | System corruption reached 10% 34655 | -5/Hub_04(d) | Spotted Lightning 34657 | -5/Hub_04(d) | Spotted Lightning 34660 | -5/Hub_04(d) | Spotted Lightning 34663 | -5/Hub_04(d) | Entered Factory 34663 | -4/Factory | Evolved 2 slots: Utility x2 34866 | -4/Factory | Lost 4 parts (1p2u1w) 34913 | -4/Factory | First assault squad dispatched 34962 | -4/Factory | Build established: Hacker-Tank 35149 | -4/Factory | Destroyed 9 combat bots 35149 | -4/Factory | Lost 10 parts (1p3n3u3w) 35208 | -4/Factory | Found Quantum Capacitor 35287 | -4/Factory | System corruption reached 10% 35695 | -4/Factory | Build established: Hacker-Assassin 35727 | -4/Factory | Incoming assault squad redirected 35731 | -4/Factory | Identified exit to Upper Caves 35731 | -4/Factory | Identified exit to Armory 35734 | -4/Factory | Incoming assault squad redirected 35929 | -4/Factory | Incoming assault squad redirected 36011 | -4/Factory | Incoming assault squad redirected 36029 | -4/Factory | Crushed by falling debris 36034 | -4/Factory | Crushed by falling debris 36039 | -4/Factory | Crushed by falling debris 36040 | -4/Factory | System corruption reached 30% 36070 | -4/Factory | Lost 7 parts (1p5u1w) 36182 | -4/Factory | Incoming assault squad redirected 36200 | -4/Factory | Crushed by falling debris 36231 | -4/Factory | Lost 3 parts (1p2u) 36247 | -4/Factory | Crushed by falling debris 36278 | -4/Factory | Lost 3 parts (1n1u1w) 36297 | -4/Factory | Core integrity fell below 50% 36355 | -4/Factory | Lost 3 parts (2n1u) 36403 | -4/Factory | Core integrity fell below 20% 36427 | -4/Factory | Destroyed by P-70 Sage with Tesla Rifle Last Messages --------------- 36398_ Knocked back. 36398_ K-01 Serf destroyed. 36399_ C-35 Carver knocked back. 36399_ C-35 Carver destroyed. 36399_ P-70 Sage knocked back. 36400_ Knocked back. 36422_ Connecting with Fabricator... >>Force(Overload) EM_IMPRINTER_OVERLOAD 36422_ ALERT: Suspicious activity at Fabricator F002. Dispatching Investigation squad. 36423_ Gyrokinetic Inverter severed. 36426_ Fabricator zaps C-35 Carver with an electromagnetic arc. 36426_ Adv. Hacking Suite severed. 36426_ P-70 Sage resets C-35 Carver, system corruption cleaned. 36427_ Fabricator zaps P-70 Sage with an electromagnetic arc. 36427_ Fabricator zaps C-35 Carver with an electromagnetic arc. 36427_ Chain reaction triggered in Unknown Power Core. 36427_ Fabricator zaps C-35 Carver with an electromagnetic arc. 36427_ Pressure Siphon disabled. Map ----- +----------------------------------------------------+ | # ###"" """#######+?####?+###### | | # #?#""F"""#???????????????????? | | # #?# """""#???????????????????? | | # #?#######????????????????????? | | # #????????????????????????????? | | # #????????????????????????????? | | # #????????????????????????????? | | ####/#####????????????????????????????? | | ???# #????????????????????????????????? | | ???# #????????????????????????????????? | | ???# #????????????????????????????????? | | ???# #????????????????????????????????? | | ???# #############????????????????????? | | ???# +????????????????????? | | ???# #????????????????????? | | ???# #????????????????????? | | ???# p p +????????????????????? | | ???# #????????????????????? | | ???# ##+######????????????? | | ???# ?????????????? | | ???# #??????????????? | | ???# """" """" !! #??????????????? | | ???# "F " """" !! #???????? ?#?? | | ???# %""" !!t #??????? #?? | | ???# #???# #?? | | ???# cc @ #???# """""" #?? | | ???# #;;;####### #???# """""" #?? | | ???# "########??????????# """""" #?? | | ???# + ??????????# """""" #?? | | ???#+#### ?????????# #?? | | ????????# ???# #########+###### | | ????????# ??# | | ????????# ??# | | ????????# ?+ | | ????????# ?# | | ????????# # | | ????????# ####+############# | | ????????# " #?#! | | ????????# # !#?# | | ????????# #] ! #?# | | ????????#########/##?# #?# ! | | ????????????????#????# ### | | ?????????????????????# """ """ + + | | ?????????????????????# """ """ ### | | ????????????????????## """ """ #?# "" | | ???????????????????##"############ "" | | ???????????????????# ##???????#### "" | | ???????????????????##[#???##### # | | ??????????????????######### # ### | | ??????????????????## # #####?###### | +----------------------------------------------------+ Best States ------------- Heat Dissipation 94 Coolant Potential 80 Energy Generation 45 Energy Capacity 600 Matter Stores 1399 Matter Capacity 1800 Sight Range 22 Robot Scan Range 16 Terrain Scan Range 20 Terrain Scan Density 210 Armor Coverage 1650 Resistance: KI 30 Resistance: TH 20 Core Shielding 20 Propulsion Shielding 66 Weapon Cycling 15 Evasion (%) 50 Melee Accuracy 8 Target Analysis 6 Core Analysis 6 Recoil Reduction 5 Matter Filtering 30 Offensive Hacking 38 Defensive Hacking 14 Authchip Count 1 Item Schematics ----------------- Huge Storage Unit | -9/Materials | Hacked Structural Scanner | -9/Materials | Extracted Lgt. EM Pulse Cannon | -9/Materials | Extracted Tractor Beam | -9/Materials | Extracted Rocket Launcher | -9/Materials | Extracted Imp. Cryofiber Web | -7/Factory | Hacked Combat Drone Bay | -7/Data Miner | Free Lgt. Regenerative Plating | -7/Data Miner | Free Cld. Aerolev Unit | -7/Data Miner | Free Thermal Defense Suite | -7/Data Miner | Free Imp. Lightning Gun | -7/Data Miner | Free Nuclear Pulse Array | -7/Data Miner | Free Adv. Field Recycling Unit | -7/Data Miner | Free Imp. Arc Projector | -7/Data Miner | Free Robot Schematics ------------------ A-15 Conveyor | -7/Data Miner | Free H-66 Slayer | -7/Data Miner | Free G-50 Soldier | -7/Data Miner | Free H-55 Commando | -7/Data Miner | Free R-10 Processor | -7/Data Miner | Free C-35 Carver | -7/Data Miner | Free Fabricated ------------ Imp. Heavy Siege Treads | x1 | -6/Factory | Preloaded Alien Tech Used ----------------- None Achievements -------------- None Challenges ------------ None Game ------ Seed DamperWarpNullifier Manual? 0 Play Time 05:20:50 Cumulative 455.9 hours Start 2025.01.12 @ 06:18:09 End 2025.01.18 @ 19:47:33 Sessions 17 Manual Loads 0 Difficulty Rogue Special Mode None Game No. 201 Rogue 201 Adventurer 0 Explorer 0 Win Type - Total 16 Types 9/2/5/0/0/0/0/0/0 Lore% 87 Gallery% 91 Achievement% 77 Wizard Run 0 Options --------- Layout 0 ASCII 0 Keyboard 1 Movement Numpad Keybinds 0 Fullscreen 2 Font 12/Smallcaps Map View 83x54 Zoom Use 0% Tactical HUD 1 Map Filters NONE Filters NONE Steam 1 RUN: bc385eab-7b66-4537-a84d-18834c00542e